bitfinex-derivatives/quotes_ETHF0:USTF0_20250320
["timestamp","ask_amount","ask_price","bid_price","bid_amount"]
[1742433536004,6.90312892,2038.7,2038.6,0.78467]
[1742433536811,7.57582892,2038.7,2038.6,0.78467]
[1742433537001,7.57582892,2038.7,2038.5,2.18577]
[1742433537002,0.78467,2038.6,2038.5,2.18577]
[1742433537198,0.78475,2038.5,2038.3,0.6782]
[1742433537496,0.78471,2038.6,2038.5,0.78468]
[1742433538296,7.57585892,2038.7,2038.6,0.78467]
[1742433538511,6.11848892,2038.7,2038.6,0.78467]
[1742433539113,6.11848892,2038.7,2038.6,1.43577]
[1742433539313,8.01693,2038.8,2038.7,0.78464]
[1742433539514,8.01693,2038.8,2038.7,2.06034]
[1742433539817,7.35743,2038.8,2038.7,2.06034]
[1742433540004,6.5728,2038.8,2038.7,2.71164]
[1742433540209,7.3574,2038.8,2038.7,2.71164]
[1742433541112,7.3574,2038.8,2038.7,1.927]
[1742433541308,7.3574,2038.8,2038.7,2.06034]
[1742433541504,3.2078,2038.8,2038.7,2.06034]
[1742433541719,3.9924,2038.8,2038.7,2.06034]
[1742433542012,3.2078,2038.8,2038.7,2.06034]
[1742433543415,3.9924,2038.8,2038.7,2.06034]
[1742433543608,3.2078,2038.8,2038.7,2.06034]
[1742433544305,0.0073515,2038.9,2038.8,0.7846]
[1742433544613,2.0680115,2038.9,2038.8,2.1628]
[1742433545910,1.2834515,2038.9,2038.7,0.78461]
[1742433546112,1.3138,2038.8,2038.7,2.11641]
[1742433546719,2.09842,2038.8,2038.7,2.11644]
[1742433547510,1.3138,2038.8,2038.7,2.11644]
[1742433548621,2.0984,2038.8,2038.7,2.11644]
[1742433548815,1.3138,2038.8,2038.7,2.11644]
[1742433551323,2.0984,2038.8,2038.7,1.3318]
[1742433551524,2.0984,2038.8,2038.5,1.43599]
[1742433551525,1.3138,2038.8,2038.5,1.43599]
[1742433551725,0.78467,2038.6,2038.5,2.73429]
[1742433551915,2.75787,2038.7,2038.6,0.78467]
[1742433552116,2.75787,2038.7,2038.6,2.16187]
[1742433552920,0.78467,2038.6,2038.5,0.78469]
[1742433553121,0.78471,2038.5,2038.4,1.44823]
[1742433553316,0.78471,2038.5,2038.4,1.3772]
[1742433553524,0.78479,2038.3,2038.2,2.15849]
[1742433553721,0.78478,2038.4,2038.3,0.78477]
[1742433554019,0.78478,2038.4,2038.3,2.16197]
[1742433554323,0.78478,2038.4,2038.3,2.16199]
[1742433554523,0.78478,2038.4,2038.3,1.3772]
[1742433554925,0.78478,2038.4,2038.3,2.16199]
[1742433559027,1.3016,2038.5,2038.3,1.3772]
[1742433559330,2.08635,2038.5,2038.4,1.3457]
[1742433559525,2.08635,2038.5,2038.4,2.13045]
[1742433560328,2.08635,2038.5,2038.4,1.3457]
[1742433561229,2.08635,2038.5,2038.4,2.13045]
[1742433561428,1.3016,2038.5,2038.4,2.13045]
[1742433561625,3.2078,2038.6,2038.5,0.78471]
[1742433561825,3.2078,2038.6,2038.5,2.18341]
[1742433562230,3.2078,2038.6,2038.5,42.98341]
[1742433562535,1.3002,2038.7,2038.6,0.78467]
[1742433562739,1.3002,2038.7,2038.6,2.83047]
[1742433563032,1.3002,2038.7,2038.6,3.52167]
[1742433563235,2.08484,2038.7,2038.6,3.52167]
[1742433563531,0.78467,2038.6,2038.5,0.78468]
[1742433563727,2.08487,2038.6,2038.5,0.78468]
[1742433564133,0.78467,2038.6,2038.5,2.18338]
[1742433564322,0.78467,2038.6,2038.5,42.98338]
[1742433564522,0.78467,2038.6,2038.5,2.18338]
[1742433564734,2.13837,2038.6,2038.5,2.18338]
[1742433565036,1.3537,2038.6,2038.5,2.18338]
[1742433566433,2.13837,2038.6,2038.5,2.18338]
[1742433567221,0.78475,2038.4,2038.3,0.6741]
[1742433567427,0.78483,2038.2,2038.1,0.6733]
[1742433567627,0.78483,2038.2,2038.1,0.78487]
[1742433568233,0.7849,2038.1,2038.0,0.78488]
[1742433568629,0.78491,2038.0,2037.9,4.6733715]
[1742433568936,0.78491,2038.0,2037.9,0.7922915]
[1742433569131,0.78491,2038.0,2037.9,0.0073515]
[1742433569640,2.11021,2038.0,2037.9,0.7922915]
[1742433570532,2.11021,2038.0,2037.9,0.0073515]
[1742433570533,4.5331,2038.0,2037.9,0.0073515]
[1742433570727,5.31801,2038.0,2037.9,0.0073515]
[1742433570928,5.31801,2038.0,2037.9,0.7922915]
[1742433571128,4.5331,2038.0,2037.9,2.0974915]
[1742433571329,3.2078,2038.0,2037.9,2.0974915]
[1742433571529,1.3083,2038.3,2038.2,0.78483]
[1742433571530,0.6395,2038.3,2038.2,0.78483]
[1742433571728,1.3044,2038.3,2038.2,0.78483]
[1742433572027,0.78475,2038.4,2038.3,0.78476]
[1742433572222,4.6654,2038.5,2038.3,0.78476]
[1742433572426,3.361,2038.5,2038.4,1.3052]
[1742433572734,4.14571,2038.5,2038.4,1.3052]
[1742433572933,4.14571,2038.5,2038.4,2.08995]
[1742433573234,1.3402,2038.6,2038.4,2.08995]
[1742433573430,2.12487,2038.6,2038.5,1.2918]
[1742433574038,1.45607,2038.6,2038.5,1.2918]
[1742433574429,0.78467,2038.6,2038.5,1.2918]
[1742433574632,0.78467,2038.6,2038.5,2.07651]
[1742433575133,7.2402,2038.7,2038.1,1.3146]
[1742433575134,0.78478,2038.4,2038.3,0.78478]
[1742433575340,0.78478,2038.4,2038.3,2.07658]
[1742433576534,0.78474,2038.5,2038.4,0.78475]
[1742433576736,0.78474,2038.5,2038.4,2.13765]
[1742433577045,0.78474,2038.5,2038.4,1.3529]
[1742433577539,0.78474,2038.5,2038.4,2.13765]
[1742433577934,1.96176,2038.6,2038.1,1.3146]
[1742433578140,0.78479,2038.3,2038.2,1.3529]
[1742433578535,1.45079,2038.3,2038.2,1.3529]
[1742433579338,1.45079,2038.3,2038.2,2.13773]
[1742433579544,3.2078,2038.4,2038.2,1.3529]
[1742433579842,3.2078,2038.4,2038.2,0.78482]
[1742433579843,0.78479,2038.3,2038.2,0.78482]
[1742433581640,3.2078,2038.4,2038.1,0.6681]
[1742433581844,0.78481,2038.3,2038.2,0.7848]
[1742433582031,3.99258,2038.4,2038.3,0.78479]
[1742433582837,0.78478,2038.4,2038.3,0.78479]
[1742433583647,6.68202,2038.6,2038.1,0.6681]
[1742433583942,0.78481,2038.3,2038.2,0.78481]
[1742433584138,0.78481,2038.3,2038.1,0.6681]
[1742433584440,0.78482,2038.3,2038.2,0.78483]
[1742433585041,3.99258,2038.4,2038.3,0.78479]
[1742433585440,0.7848,2038.3,2038.2,0.7848]
[1742433585747,3.99258,2038.4,2038.3,0.78479]
[1742433586146,0.7848,2038.3,2038.2,0.7848]
[1742433586442,0.7848,2038.3,2038.2,0.78479]
[1742433587242,3.99258,2038.4,2038.3,0.78479]
[1742433588847,3.2078,2038.4,2038.3,0.78479]
[1742433590547,0.6403,2038.8,2038.7,0.78464]
[1742433590847,1.4249,2038.8,2038.7,0.78464]
[1742433593041,3.2151515,2038.9,2038.8,0.7846]
[1742433593242,0.78461,2038.8,2038.7,0.78461]
[1742433595452,3.9997415,2038.9,2038.8,0.7846]
[1742433596149,3.2151515,2038.9,2038.8,0.7846]
[1742433596454,7.92102,2039.4,2038.9,1.96136]
[1742433596455,5.96,2039.4,2038.9,1.96136]
[1742433596650,0.78442,2039.3,2039.2,0.78443]
[1742433596949,5.16883,2039.3,2038.9,0.78454]
[1742433597147,0.78452,2039.0,2038.9,1.3263]
[1742433597341,3.99232,2039.0,2038.9,1.3263]
[1742433597747,0.7846,2038.8,2038.7,4.7850515]
[1742433598148,1.47809,2038.9,2038.8,0.7846]
[1742433598454,0.7846,2038.8,2038.7,4.7850815]
[1742433598851,0.7846,2038.8,2038.7,4.1499815]
[1742433599051,0.7846,2038.8,2038.7,5.4821815]
[1742433599349,1.47809,2038.9,2038.8,0.7846]
[1742433599550,0.7846,2038.8,2038.7,4.1499615]
[1742433599750,0.7846,2038.8,2038.7,0.7919615]
[1742433600651,0.7846,2038.8,2038.7,0.0073515]
[1742433600852,4.1426,2038.8,2038.7,0.0073515]
[1742433601056,4.1426,2038.8,2038.5,0.7847]
[1742433601057,0.78471,2038.6,2038.5,0.7847]
[1742433601351,0.78471,2038.6,2038.3,0.78478]
[1742433601352,0.78475,2038.4,2038.3,0.78478]
[1742433601557,0.78474,2038.5,2038.4,0.78475]
[1742433601744,3.99247,2038.6,2038.5,0.78471]
[1742433602151,3.2078,2038.6,2038.3,0.0073515]
[1742433602456,0.78475,2038.4,2038.3,0.7921315]
[1742433603444,0.78475,2038.4,2038.3,0.7921415]
[1742433603648,0.78475,2038.4,2038.3,0.0073515]
[1742433604049,1.44185,2038.4,2038.3,0.0073515]
[1742433604248,2.71835,2038.4,2038.3,0.0073515]
[1742433605049,2.71835,2038.4,2037.9,0.6725]
[1742433605050,0.78491,2038.0,2037.9,0.6725]
[1742433605355,0.78502,2037.7,2037.6,4.14203]
[1742433605551,1.9817,2037.9,2037.4,54.6172]
[1742433605753,0.78508,2037.6,2037.5,0.78506]
[1742433605949,0.78508,2037.6,2037.5,0.7851]
[1742433606350,0.7851,2037.5,2037.4,4.65131]
[1742433607152,0.7851,2037.5,2037.4,1.44351]
[1742433607755,0.7851,2037.5,2037.3,0.6916515]
[1742433607756,0.78514,2037.4,2037.3,0.0073515]
[1742433608659,2.83914,2037.4,2037.3,0.0073515]
[1742433610956,2.15714,2037.4,2037.3,0.0073515]
[1742433612962,3.2078,2037.6,2037.3,0.0073515]
[1742433613268,3.2078,2037.6,2037.5,0.7851]
[1742433613563,0.0073515,2037.8,2037.7,0.78502]
[1742433614157,0.0073515,2037.8,2037.7,2.11292]
[1742433614756,3.2078,2038.2,2038.1,0.78487]
[1742433615165,4.5306,2038.2,2038.1,0.78487]
[1742433615466,3.2078,2038.2,2038.1,0.78487]
[1742433616059,2.1149015,2038.4,2038.2,0.7848]
[1742433616259,2.1149015,2038.4,2038.3,2.06319]
[1742433616461,1.3301515,2038.4,2038.3,2.06319]
[1742433617163,2.1149015,2038.4,2038.3,2.06319]
[1742433617567,2.1149015,2038.4,2038.3,1.2784]
[1742433617771,0.78482,2038.3,2038.1,0.78484]
[1742433617958,0.78482,2038.3,2038.2,1.2784]
[1742433618769,0.78486,2038.2,2038.0,0.78488]
[1742433618971,0.78486,2038.2,2038.1,0.78487]
[1742433619267,4.68011,2038.3,2038.2,0.78483]
[1742433619772,3.8953,2038.3,2038.0,1.2784]
[1742433619968,0.78487,2038.1,2038.0,1.2784]
[1742433620559,1.96208,2038.2,2037.8,9.1678]
[1742433620763,1.96208,2038.2,2037.9,1.3555]
[1742433620764,0.78491,2038.0,2037.9,1.3555]
[1742433621065,0.78494,2037.9,2037.8,5.96]
[1742433621272,7.34973,2038.0,2037.9,0.78494]
[1742433621472,7.34973,2038.0,2037.9,1.3555]
[1742433622761,0.78502,2037.7,2037.6,1.48604]
[1742433623966,0.78501,2037.8,2037.7,0.78501]
[1742433624166,0.78501,2037.8,2037.7,1.4058]
[1742433625473,0.78501,2037.8,2037.7,2.19082]
[1742433625676,0.78501,2037.8,2037.7,1.4058]
[1742433626275,0.78501,2037.8,2037.7,2.19082]
[1742433627070,0.78501,2037.8,2037.7,1.4058]
[1742433634179,2.17671,2037.8,2037.7,1.4058]
[1742433635780,0.7851,2037.5,2037.4,1.48072]
[1742433635981,0.7851,2037.5,2037.4,2.75282]
[1742433636182,0.7851,2037.5,2037.4,1.9677]
[1742433636382,2.1256,2037.5,2037.4,1.9677]
[1742433636586,2.8103,2037.5,2037.4,1.9677]
[1742433636990,2.8103,2037.5,2037.4,1.2721]
[1742433637391,0.78514,2037.4,2037.3,0.0073515]
[1742433637688,6.19344,2037.4,2037.3,0.0073515]
[1742433638390,6.19344,2037.4,2036.7,0.78538]
[1742433638391,13.8683,2037.4,2036.7,0.78538]
[1742433638687,0.78537,2036.8,2036.7,0.78538]
[1742433639784,0.78537,2036.8,2036.6,0.6848]
[1742433639785,0.78541,2036.7,2036.6,0.6848]
[1742433639984,2.16141,2036.7,2036.6,1.3314]
[1742433640987,2.16141,2036.7,2036.6,2.11685]
[1742433641291,2.16141,2036.7,2036.6,1.3314]
[1742433642197,5.51741,2036.7,2036.6,1.3314]
[1742433644389,5.51741,2036.7,2036.6,2.11685]
[1742433644997,5.51741,2036.7,2036.6,1.3314]
[1742433645603,5.51741,2036.7,2036.6,2.11685]
[1742433646905,5.51741,2036.7,2036.6,1.3314]
[1742433648304,5.51741,2036.7,2036.6,2.11685]
[1742433648504,5.51741,2036.7,2036.6,1.3314]
[1742433649410,5.51741,2036.7,2036.6,2.11685]
[1742433649591,5.51741,2036.7,2036.6,1.3314]
[1742433650706,0.78545,2036.6,2036.5,1.3258515]
[1742433651005,2.14865,2036.6,2036.5,1.3258515]
[1742433654226,2.14865,2036.6,2036.5,2.1113315]
[1742433654403,2.14865,2036.6,2036.5,1.3258515]
[1742433656202,2.84365,2036.6,2036.5,1.3258515]
[1742433657809,2.0582,2036.6,2036.0,0.78565]
[1742433658015,0.78568,2036.1,2036.0,2.12355]
[1742433658413,0.78568,2036.1,2036.0,1.3379]
[1742433658706,0.78568,2036.1,2036.0,2.12358]
[1742433660505,0.78568,2036.1,2036.0,1.3379]
[1742433661417,0.78568,2036.1,2036.0,2.12358]
[1742433661821,0.78568,2036.1,2036.0,1.3379]
[1742433662219,0.78568,2036.1,2036.0,2.12358]
[1742433662518,0.78568,2036.1,2036.0,2.6322]
[1742433662719,0.78568,2036.1,2036.0,3.41788]
[1742433663013,3.99348,2036.1,2036.0,2.6322]
[1742433663816,5.39698,2036.1,2036.0,2.6322]
[1742433664517,3.2078,2036.1,2036.0,3.41788]
[1742433664920,10.10154,2036.4,2036.3,0.78556]
[1742433665111,6.74554,2036.4,2036.3,0.78556]
[1742433665419,0.78556,2036.3,2036.2,2.19227]
[1742433669010,2.11725,2036.4,2036.3,0.78556]
[1742433669317,2.11725,2036.4,2036.3,2.09216]
[1742433669922,2.11725,2036.4,2036.3,1.3066]
[1742433670220,2.11725,2036.4,2036.3,2.09216]
[1742433670717,2.11725,2036.4,2035.2,5.17276]
[1742433670718,0.78572,2035.9,2035.2,5.17276]
[1742433670918,0.78572,2035.9,2035.4,1.3066]
[1742433670919,0.78592,2035.5,2035.4,1.3066]
[1742433671521,2.11172,2035.5,2035.4,1.3066]
[1742433672113,2.11172,2035.5,2035.2,0.0073515]
[1742433672114,0.78595,2035.3,2035.2,0.0073515]
[1742433672319,0.78595,2035.3,2035.2,1.3316515]
[1742433674322,1.96497,2035.2,2034.6,9.1678]
[1742433674517,0.7861,2035.0,2034.9,1.951]
[1742433675628,6.5628,2035.0,2034.0,5.17389]
[1742433675825,0.78638,2034.2,2034.1,3.355]
[1742433676124,1.96586,2034.3,2033.9,51.60246]
[1742433676327,0.78646,2034.0,2033.9,0.78646]
[1742433676630,0.78644,2034.1,2034.0,0.78643]
[1742433677216,5.32087,2034.3,2033.9,3.43497]
[1742433677523,0.78645,2034.0,2033.9,2.6485]
[1742433677919,0.78645,2034.0,2033.9,3.43499]
[1742433678121,0.78645,2034.0,2033.9,1.951]
[1742433678320,3.99425,2034.0,2033.9,1.951]
[1742433679520,0.7866,2033.6,2033.5,41.4421]
[1742433680526,0.7866,2033.6,2033.5,0.6421]
[1742433680919,0.7866,2033.6,2033.5,1.42874]
[1742433681126,3.2078,2034.0,2033.5,3.8499]
[1742433681430,3.2078,2034.0,2033.9,0.78645]
[1742433681431,4.14249,2034.0,2033.9,0.78645]
[1742433681930,0.78651,2033.9,2033.8,0.78649]
[1742433682227,0.78651,2033.9,2033.7,0.699]
[1742433682228,0.78653,2033.8,2033.7,2.0494]
[1742433682421,2.08643,2033.8,2033.7,1.3504]
[1742433683017,0.78653,2033.9,2033.8,0.78651]
[1742433683217,3.357,2034.0,2033.9,0.78649]
[1742433683422,10.10339,2034.2,2034.1,0.78641]
[1742433683623,0.78643,2034.1,2034.0,0.78641]
[1742433683821,0.78636,2034.3,2034.2,0.78637]
[1742433684026,3.36436974,2034.4,2034.3,0.78633]
[1742433684326,4.15068974,2034.4,2034.3,0.78633]
[1742433684527,3.36436974,2034.4,2034.3,0.78633]
[1742433685131,4.15065974,2034.4,2034.3,0.78633]
[1742433686236,0.00736974,2034.4,2034.3,0.78633]
[1742433687024,0.79365974,2034.4,2034.3,0.78633]
[1742433687331,0.00736974,2034.4,2034.3,3.99413]
[1742433689231,3.99391,2034.9,2034.3,3.2078]
[1742433689436,3.99391,2034.9,2034.8,0.78614]
[1742433689631,6.5648,2035.2,2034.8,1.96534]
[1742433689824,3.9938,2035.2,2035.1,0.78602]
[1742433690631,0.78605,2035.1,2035.0,0.78605]
[1742433690828,0.78606,2035.0,2034.9,0.00736974]
[1742433691629,0.78606,2035.0,2034.9,0.79346974]
[1742433692027,0.78605,2035.1,2035.0,0.78605]
[1742433692228,2.07275,2035.1,2035.0,0.78605]
[1742433692428,3.9938,2035.2,2035.1,0.78602]
[1742433692628,0.78604,2035.1,2035.0,0.78605]
[1742433692829,2.07274,2035.1,2035.0,0.78605]
[1742433693643,0.78606,2035.0,2034.9,0.79344974]
[1742433693937,1.2867,2035.0,2034.9,0.79344974]
[1742433694635,2.07276,2035.0,2034.9,0.79344974]
[1742433694841,2.07276,2035.0,2034.9,0.00736974]
[1742433695437,5.42876,2035.0,2034.9,0.00736974]
[1742433695937,0.78626,2034.6,2034.5,0.78625]
[1742433696438,3.2078,2034.8,2034.4,1.2746]
[1742433696636,3.2078,2034.8,2034.7,0.78618]
[1742433697430,3.2078,2034.8,2034.6,1.2746]
[1742433697738,2.13788,2034.7,2034.6,2.06079]
[1742433698130,0.78617,2034.8,2034.7,0.78618]
[1742433698329,1.3695,2034.9,2034.7,1.3071]
[1742433698539,0.78614,2034.8,2034.7,2.09324]
[1742433698738,1.3695,2034.9,2034.8,0.78614]
[1742433699131,2.1556,2034.9,2034.8,0.78614]
[1742433699424,1.3695,2034.9,2034.8,0.78614]
[1742433699938,0.78609,2035.0,2034.9,0.7861]
[1742433700134,2.15559,2035.0,2034.9,0.7861]
[1742433701238,1.3695,2035.0,2034.9,0.7861]
[1742433701541,5.31982,2035.1,2035.0,0.78606]
[1742433701743,4.5338,2035.1,2034.9,0.78607]
[1742433702038,4.5338,2035.1,2035.0,1.3642]
[1742433702039,5.31982,2035.1,2035.0,1.3642]
[1742433702241,0.78609,2035.0,2034.9,0.78609]
[1742433702541,2.11209,2035.0,2034.9,0.78609]
[1742433703135,0.7861,2034.9,2034.8,2.1503]
[1742433703333,2.1121,2034.9,2034.8,2.1503]
[1742433705032,0.78618,2034.7,2034.6,0.78619]
[1742433705235,0.78624,2034.6,2034.5,0.78623]
[1742433705434,3.2078,2034.7,2034.4,1.286]
[1742433705741,0.78622,2034.6,2034.5,0.78622]
[1742433705942,3.99401,2034.7,2034.6,0.78622]
[1742433706640,1.3515,2034.8,2034.7,0.78618]
[1742433706938,4.0038,2034.9,2034.8,0.78614]
[1742433706939,3.355,2034.9,2034.8,0.78614]
[1742433707236,4.5593,2035.0,2034.9,0.7861]
[1742433707633,3.2078,2035.0,2034.8,0.6637]
[1742433707834,4.5551,2035.0,2034.9,2.1368]
[1742433708235,5.34116,2035.0,2034.9,2.1368]
[1742433708432,5.34116,2035.0,2034.9,1.3507]
[1742433708636,3.2078,2035.0,2034.9,2.1368]
[1742433710837,3.99386,2035.0,2034.9,1.3507]
[1742433711037,5.34716,2035.0,2034.9,1.3507]
[1742433711544,0.78614,2034.8,2034.7,0.78615]
[1742433711743,4.5611,2035.0,2034.7,0.78615]
[1742433711939,0.78618,2034.7,2034.6,3.354]
[1742433712241,0.78621,2034.7,2034.6,0.78622]
[1742433712841,0.7862,2034.7,2034.6,0.7862]
[1742433713044,2.13947,2034.8,2034.7,0.78618]
[1742433713546,0.78619,2034.7,2034.6,0.78618]
[1742433714949,0.78622,2034.6,2034.5,2.15112]
[1742433715143,0.78634,2034.3,2034.1,3.2078]
[1742433715344,1.3984,2034.6,2034.3,0.78633]
[1742433715541,0.78629,2034.4,2034.3,0.78633]
[1742433716752,0.78636,2034.3,2034.2,0.78635]
[1742433716954,2.08906,2034.3,2034.1,7.2292]
[1742433717148,2.08906,2034.3,2034.2,0.78637]
[1742433717552,1.3027,2034.3,2034.2,0.78637]
[1742433718151,0.78631,2034.4,2034.3,0.78633]
[1742433718352,1.3027,2034.4,2034.1,7.2292]
[1742433718551,0.78637,2034.2,2034.1,8.01558]
[1742433718750,2.08902,2034.4,2034.3,0.78633]
[1742433718951,1.31006974,2034.4,2034.3,0.78633]
[1742433719649,0.00736974,2034.4,2034.3,0.78633]
[1742433720150,3.354,2034.8,2034.3,0.78633]
[1742433720151,0.78615,2034.8,2034.7,0.78615]
[1742433720354,0.78618,2034.7,2034.6,0.78619]
[1742433720553,2.18125,2034.8,2034.7,0.78618]
[1742433721156,0.78619,2034.7,2034.6,0.7862]
[1742433721453,2.1813,2034.7,2034.6,0.78622]
[1742433722051,1.3951,2034.7,2034.6,0.78622]
[1742433722247,0.78615,2034.8,2034.5,3.29184]
[1742433722553,1.3951,2034.8,2034.7,0.78616]
[1742433722746,4.14749974,2034.9,2034.8,0.78614]
[1742433723254,0.78614,2034.8,2034.7,0.78615]
[1742433723657,2.08714,2034.8,2034.7,0.78615]
[1742433724060,0.7862,2034.7,2034.6,0.7862]
[1742433724262,1.301,2034.7,2034.6,0.7862]
[1742433724953,2.08718,2034.7,2034.6,0.7862]
[1742433725361,1.301,2034.7,2034.4,4.00143974]
[1742433725562,0.78626,2034.5,2034.4,3.21516974]
[1742433725749,0.78626,2034.5,2034.4,0.00736974]
[1742433726160,2.15916,2034.5,2034.4,0.00736974]
[1742433726469,5.36696,2034.5,2034.4,0.00736974]
[1742433727559,0.78645,2034.0,2033.9,0.78649]
[1742433728360,2.15935,2034.0,2033.9,0.78649]
[1742433728756,0.78652,2033.9,2033.8,0.7865]
[1742433728957,2.18022,2033.9,2033.8,0.7865]
[1742433729157,1.3937,2033.9,2033.8,0.7865]
[1742433729856,0.78648,2034.0,2033.9,0.78649]
[1742433730160,1.3937,2034.0,2033.9,0.78649]
[1742433730355,2.18015,2034.0,2033.9,0.78649]
[1742433730965,1.3937,2034.0,2033.9,0.78649]
[1742433731369,0.78644,2034.1,2034.0,0.78645]
[1742433731666,5.3879,2034.2,2034.1,0.78641]
[1742433732568,0.78644,2034.1,2034.0,0.78643]
[1742433732761,2.12204,2034.1,2034.0,0.78643]
[1742433733670,1.3356,2034.1,2034.0,0.78643]
[1742433733864,3.9942,2034.2,2034.1,0.78641]
[1742433734059,4.5434,2034.2,2034.1,0.78641]
[1742433734463,5.32977,2034.2,2034.1,0.78641]
[1742433735058,2.12197,2034.2,2034.1,0.78641]
[1742433735460,1.3356,2034.2,2034.1,0.78641]
[1742433736663,3.8874,2034.5,2034.4,0.78629]
[1742433736869,4.5054,2034.5,2034.4,0.78629]
[1742433737065,3.2078,2034.5,2034.4,0.78629]
[1742433737267,1.2976,2034.6,2034.5,0.78626]
[1742433737568,8.72945,2034.8,2034.7,0.78618]
[1742433737868,9.38355,2034.8,2034.7,0.78618]
[1742433738062,0.7862,2034.7,2034.6,0.78619]
[1742433738262,0.78622,2034.6,2034.5,3.54133]
[1742433738770,0.78622,2034.6,2034.5,2.19103]
[1742433739171,0.78622,2034.6,2034.5,1.4048]
[1742433739762,0.78622,2034.6,2034.5,2.19106]
[1742433740263,0.78622,2034.6,2034.5,1.4048]
[1742433740462,0.78629,2034.4,2034.3,0.6755]
[1742433740671,1.96561,2034.6,2034.2,2.86715]
[1742433740672,0.78633,2034.3,2034.2,2.86715]
[1742433740862,0.78633,2034.3,2034.2,2.19116]
[1742433741066,3.98521,2034.5,2034.3,0.7863]
[1742433741067,0.78631,2034.4,2034.3,0.7863]
[1742433741571,0.78633,2034.3,2034.2,2.19114]
[1742433742474,0.78633,2034.3,2034.2,1.4048]
[1742433742662,0.78633,2034.3,2034.2,2.19117]
[1742433742861,0.78633,2034.3,2034.2,1.4048]
[1742433743266,0.78641,2034.1,2034.0,0.6755]
[1742433743471,0.78645,2034.0,2033.9,1.46245]
[1742433743871,0.78645,2034.0,2033.9,0.78645]
[1742433744368,0.78649,2033.9,2033.8,4.6369]
[1742433744564,2.12539,2033.9,2033.8,4.6369]
[1742433745566,2.12539,2033.9,2033.8,3.2078]
[1742433745772,2.12539,2033.9,2033.5,4.13963]
[1742433745773,0.7866,2033.6,2033.5,4.13963]
[1742433746274,1.48021974,2033.8,2033.7,0.78657]
[1742433746566,0.7866,2033.7,2033.6,0.78659]
[1742433746976,2.0721,2033.7,2033.6,0.78659]
[1742433747279,1.2855,2033.7,2033.5,2.11451]
[1742433747469,2.07208,2033.7,2033.6,0.7866]
[1742433748067,0.7866,2033.6,2033.5,2.11453]
[1742433749872,0.78672,2033.3,2033.2,40.8]
[1742433750073,0.78672,2033.3,2033.2,0.78676]
[1742433750376,0.78674,2033.3,2033.2,0.78676]
[1742433750671,1.3533,2033.5,2033.1,5.46777]
[1742433750869,0.78674,2033.3,2033.2,0.78676]
[1742433751064,0.78676,2033.2,2033.1,1.328]
[1742433751264,3.31995,2033.5,2033.0,1.2832]
[1742433751265,6.67293,2033.5,2033.0,1.2832]
[1742433751568,0.78672,2033.3,2033.2,0.78674]
[1742433751769,5.49297,2033.5,2033.2,1.2832]
[1742433752079,3.8794,2033.6,2033.2,1.2832]
[1742433752080,3.2078,2033.6,2033.5,0.78664]
[1742433752767,2.83349974,2033.8,2033.7,0.78657]
[1742433752967,2.04696974,2033.8,2033.7,0.78657]
[1742433753168,2.83349974,2033.8,2033.7,0.78657]
[1742433754074,0.78657,2033.7,2033.6,2.16338]
[1742433754267,1.3378,2033.7,2033.6,2.16338]
[1742433756272,1.34636974,2033.8,2033.7,0.78657]
[1742433756472,1.34636974,2033.8,2033.7,2.17057]
[1742433757286,2.13289974,2033.8,2033.7,2.17057]
[1742433757469,1.34636974,2033.8,2033.7,2.17057]
[1742433760077,0.00736974,2033.8,2033.7,2.17057]
[1742433760575,1.32096974,2033.8,2033.7,2.17057]
[1742433760975,3.2078,2034.3,2034.2,0.78637]
[1742433761578,1.3012,2034.5,2034.4,0.78629]
[1742433761777,13.30604,2034.6,2034.5,0.78626]
[1742433761973,5.96,2034.6,2034.5,0.78626]
[1742433762172,4.1382,2034.7,2034.6,0.78622]
[1742433762173,0.7862,2034.7,2034.6,0.78622]
[1742433762482,0.78618,2034.7,2034.6,0.78619]
[1742433762980,0.78618,2034.7,2034.4,1.3474]
[1742433762981,2.09472974,2034.8,2034.7,0.78618]
[1742433763176,2.09472974,2034.8,2034.6,0.78619]
[1742433763372,2.09472974,2034.8,2034.7,2.13358]
[1742433763579,2.09470974,2034.8,2034.7,2.13358]
[1742433763773,1.44890974,2034.8,2034.7,0.78618]
[1742433763977,0.78622,2034.6,2034.4,0.78628]
[1742433764274,1.29996974,2034.8,2034.3,7.26636974]
[1742433764476,2.19606,2034.5,2034.4,2.13369]
[1742433764679,2.19606,2034.5,2034.4,1.3474]
[1742433766175,1.4098,2034.5,2034.4,2.13369]
[1742433766682,2.19606,2034.5,2034.4,1.3474]
[1742433766875,1.4098,2034.5,2034.4,2.13369]
[1742433767082,2.19606,2034.5,2034.4,1.3474]
[1742433767880,2.19606,2034.5,2034.4,2.13369]
[1742433768487,2.19606,2034.5,2034.4,1.3474]
[1742433769180,0.78629,2034.4,2034.3,0.79368974]
[1742433769382,2.17689,2034.4,2034.3,1.36146974]
[1742433770278,2.17689,2034.4,2034.2,1.48084]
[1742433770279,1.3906,2034.4,2033.7,3.351]
[1742433770476,0.78648,2034.0,2033.9,0.78648]
[1742433771087,0.78653,2033.8,2033.7,4.79464]
[1742433771479,0.78653,2033.8,2033.7,1.44364]
[1742433772782,1.3341,2034.0,2033.7,1.44364]
[1742433772983,0.78649,2033.9,2033.8,1.2806]
[1742433773170,0.78649,2033.9,2033.8,2.06713]
[1742433773371,0.78649,2033.9,2033.8,1.2806]